fUST/lending_fUST_20250625
["ID","MTS","AMOUNT","RATE_DAILY","PERIOD"]
[367527881,1750845046175,-151.0,0.00018659,2]
[367527882,1750845046185,-5000.0,0.00018659,2]
[367527884,1750845046194,-500.0,0.00018659,2]
[367527886,1750845046203,-500.0,0.00018659,2]
[367527888,1750845046213,-500.0,0.00018659,2]
[367527890,1750845046222,-207.4,0.00018659,2]
[367527891,1750845046232,-500.0,0.00018659,2]
[367527893,1750845046241,-500.0,0.00018659,2]
[367527894,1750845046250,-500.0,0.00018659,2]
[367527895,1750845046259,-500.0,0.00018659,2]
[367527896,1750845046269,-500.0,0.00018659,2]
[367527897,1750845046278,-500.0,0.00018659,2]
[367527898,1750845046287,-500.0,0.00018659,2]
[367527899,1750845046296,-500.0,0.00018659,2]
[367527900,1750845046306,-500.0,0.00018659,2]
[367527901,1750845046315,-500.0,0.00018659,2]
[367527902,1750845046324,-500.0,0.00018659,2]
[367527903,1750845046333,-1688.0,0.00018659,2]
[367527904,1750845046342,-500.0,0.00018659,2]
[367527905,1750845046351,-500.0,0.00018659,2]
[367527906,1750845046361,-500.0,0.00018659,2]
[367527907,1750845046374,-500.0,0.00018659,2]
[367527908,1750845046384,-500.0,0.00018659,2]
[367527909,1750845046395,-500.0,0.00018659,2]
[367527910,1750845046405,-500.0,0.00018659,2]
[367527911,1750845046415,-500.0,0.00018659,2]
[367527912,1750845046424,-500.0,0.00018659,2]
[367527913,1750845046434,-500.0,0.00018659,2]
[367527914,1750845046442,-500.0,0.00018659,2]
[367527915,1750845046452,-500.0,0.00018659,2]
[367527916,1750845046461,-500.0,0.00018659,2]
[367527917,1750845046471,-500.0,0.00018659,2]
[367527918,1750845046480,-500.0,0.00018659,2]
[367527919,1750845046490,-500.0,0.00018659,2]
[367527920,1750845046500,-500.0,0.00018659,2]
[367527921,1750845046511,-500.0,0.00018659,2]
[367527922,1750845046521,-500.0,0.00018659,2]
[367527923,1750845046530,-500.0,0.00018659,2]
[367527924,1750845046539,-500.0,0.00018659,2]
[367527925,1750845046549,-500.0,0.00018659,2]
[367527926,1750845046559,-151.0,0.00018659,2]
[367527927,1750845046568,-151.0,0.00018659,2]
[367527928,1750845046577,-151.0,0.00018659,2]
[367527929,1750845046586,-288.89272804,0.00018659,2]
[367527930,1750845046595,-151.0,0.00018659,2]
[367527931,1750845046604,-151.0,0.00018659,2]
[367527932,1750845046613,-227.54651037,0.00018659,2]
[367527933,1750845046622,-25000.0,0.00018659,2]
[367527934,1750845046632,-21711.96576125,0.00018659,2]
[367527935,1750845046641,-1500.0,0.00018667,2]
[367527936,1750845046653,-426.053602,0.00018713,2]
[367527937,1750845046662,-1750.456,0.00018714,2]
[367527938,1750845046671,-1815.222872,0.00018769,2]
[367527939,1750845046681,-615.0,0.00018775,2]
[367527940,1750845046691,-460.0,0.00018777,2]
[367527941,1750845046702,-1810.61,0.00018777,2]
[367527942,1750845046711,-1769.19,0.00018777,2]
[367527943,1750845046721,-522.63,0.00018777,2]
[367527944,1750845046731,-1268.36,0.00018777,2]
[367527945,1750845046740,-460.0,0.00018777,2]
[367527946,1750845046750,-1295.58,0.00018777,2]
[367527947,1750845046759,-513.43,0.00018777,2]
[367527948,1750845046769,-491.11,0.00018777,2]
[367527949,1750845046778,-460.0,0.00018777,2]
[367527950,1750845046787,-1436.98,0.00018777,2]
[367527951,1750845046797,-460.0,0.00018778,2]
[367527952,1750845046808,-4462.47,0.00018778,2]
[367527953,1750845046819,-529.12,0.00018778,2]
[367527954,1750845046829,-460.0,0.00018778,2]
[367527955,1750845046839,-460.0,0.00018778,2]
[367527956,1750845046849,-460.0,0.00018778,2]
[367527957,1750845046858,-152.145735,0.00018779,2]
[367527958,1750845046868,-153.508337,0.00018779,2]
[367527959,1750845046878,-151.0,0.00018779,2]
[367527960,1750845046888,-151.0,0.00018779,2]
[367527961,1750845046901,-929.87,0.00018779,2]
[367527962,1750845046911,-404.354973,0.00018779,2]
[367527963,1750845046920,-404.354973,0.00018779,2]
[367527964,1750845046930,-460.0,0.00018779,2]
[367527965,1750845046939,-151.764614,0.00018779,2]
[367527966,1750845046949,-460.0,0.00018779,2]
[367527967,1750845046958,-618.94,0.00018779,2]
[367527968,1750845046967,-460.0,0.00018779,2]
[367527969,1750845046977,-1512.44,0.00018779,2]
[367527970,1750845046986,-3230.87,0.00018779,2]
[367527971,1750845046995,-756.04,0.00018779,2]
[367527972,1750845047005,-1220.5,0.00018779,2]
[367527973,1750845047015,-480.23,0.00018779,2]
[367527974,1750845047024,-647.14,0.0001878,2]
[367527975,1750845047034,-2206.178917,0.00018798,2]
[367527976,1750845047044,-160.0,0.000188,4]
[367527977,1750845047054,-151.0,0.000188,2]
[367527978,1750845047064,-1882.38611826,0.00018824,2]
[367527979,1750845047075,-1175.208,0.00018829,2]
[367527980,1750845047085,-177.798,0.00018829,2]
[367527981,1750845047094,-12997.82583214,0.00018866,2]
[367527982,1750845047104,-1952.03440464,0.00018879,2]
[367527983,1750845047113,-615.0,0.00018884,2]
[367527984,1750845047122,-3263.46329159,0.000189,2]
[367527985,1750845047131,-2024.25967761,0.00018934,2]
[367527986,1750845047140,-89873.62717171,0.00018945,2]
[367527987,1750845047149,-151.0,0.00018945,2]
[367527988,1750845047158,-151.0,0.00018945,2]
[367527989,1750845047167,-151.0,0.00018945,2]
[367527990,1750845047175,-151.0,0.00018945,2]
[367527991,1750845047184,-151.0,0.00018945,2]
[367527992,1750845047193,-151.0,0.00018945,2]
[367527993,1750845047202,-151.320744,0.00018945,2]
[367527994,1750845047211,-401.48317,0.00018945,2]
[367527995,1750845047220,-151.0,0.00018945,2]
[367527996,1750845047229,-401.48317,0.00018945,2]
[367527997,1750845047238,-151.0,0.00018945,2]
[367527998,1750845047247,-151.0,0.00018945,2]
[367527999,1750845047256,-151.0,0.00018945,2]
[367528000,1750845047268,-223.040346,0.00018945,2]
[367528001,1750845047282,-223.040346,0.00018945,2]
[367528002,1750845047296,-1969.476509,0.00018945,2]
[367528003,1750845047311,-1969.476509,0.00018945,2]
[367528004,1750845047322,-151.0,0.00018945,2]
[367528005,1750845047336,-151.0,0.00018945,2]
[367528006,1750845047349,-151.0,0.00018945,2]
[367528007,1750845047362,-151.0,0.00018945,2]
[367528008,1750845047375,-2165.38291254,0.00018953,2]
[367528009,1750845047389,-2099.15728568,0.00018989,2]
[367528010,1750845047401,-800.0,0.00018993,2]
[367528011,1750845047415,-151.0,0.00018995,2]
[367528012,1750845047428,-151.0,0.00018995,2]
[367528013,1750845047442,-404.354973,0.00018995,2]
[367528014,1750845047453,-404.354973,0.00018995,2]
[367528015,1750845047467,-151.0,0.00019,2]
[367528016,1750845047479,-151.0,0.00019,2]
[367528017,1750845047492,-193.425498,0.00019,2]
[367528018,1750845047504,-193.425498,0.00019,2]
[367528019,1750845047517,-151.0,0.00019,2]
[367528020,1750845047527,-151.0,0.00019,2]
[367528021,1750845047539,-151.0,0.00019,2]
[367528022,1750845047551,-151.0,0.00019,2]
[367528023,1750845047563,-548.29212,0.00019,2]
[367528024,1750845047576,-548.29212,0.00019,2]
[367528025,1750845047588,-217.142211,0.00019,2]
[367528026,1750845047601,-217.142211,0.00019,2]
[367528027,1750845047615,-33711.69113565,0.00019,2]
[367528028,1750845047636,-38906.25881667,0.00019,2]
[367528029,1750845047651,-151.0,0.00019,2]
[367528030,1750845047662,-151.0,0.00019,2]
[367528031,1750845047673,-246.633644,0.00019,2]
[367528032,1750845047684,-246.633644,0.00019,2]
[367528033,1750845047694,-1751.38212307,0.00019044,2]
[367528034,1750845047765,-460.0,0.00016862,2]
[367528035,1750845047778,-425.44398218,0.00019044,2]
[367528036,1750845047791,-460.0,0.00019051,2]
[367528037,1750845047802,-409.99019619,0.00019051,2]
[367528038,1750845047918,-1400.61980381,0.00019051,2]
[367528039,1750845047930,-1769.19,0.00019051,2]
[367528040,1750845047941,-522.63,0.00019051,2]
[367528041,1750845047953,-1268.36,0.00019051,2]
[367528042,1750845047963,-460.0,0.00019051,2]
[367528043,1750845047976,-1295.58,0.00019051,2]
[367528044,1750845047987,-513.43,0.00019051,2]
[367528045,1750845048000,-491.11,0.00019051,2]
[367528046,1750845048011,-460.0,0.00019051,2]
[367528047,1750845048023,-1436.98,0.00019051,2]
[367528048,1750845048035,-460.0,0.00019052,2]
[367528049,1750845048048,-4462.47,0.00019052,2]
[367528050,1750845048061,-529.12,0.00019052,2]
[367528051,1750845048072,-460.0,0.00019052,2]
[367528052,1750845048084,-287.24,0.00019052,2]
[367528053,1750845048095,-460.0,0.00019052,2]
[367528054,1750845048107,-929.87,0.00019053,2]
[367528055,1750845048118,-460.0,0.00019053,2]
[367528056,1750845048131,-460.0,0.00019053,2]
[367528057,1750845048143,-140.07861731,0.00019053,2]
[367528058,1750845048420,-460.0,0.00016861,2]
[367528059,1750845048430,-483.27,0.00016862,2]
[367528060,1750845048441,-460.0,0.00017135,2]
[367528061,1750845048451,-478.86138269,0.00019053,2]
[367528062,1750845048460,-324.8073408,0.00019053,2]
[367528063,1750845048851,-135.1926592,0.00019053,2]
[367528064,1750845048862,-1512.44,0.00019053,2]
[367528065,1750845048872,-3230.87,0.00019053,2]
[367528066,1750845048883,-475.97479697,0.00019053,2]
[367528067,1750845048906,-280.06520303,0.00019053,2]
[367528068,1750845048916,-101.8629815,0.00019053,2]
[367528069,1750845048927,-1118.6370185,0.00019053,2]
[367528070,1750845048937,-480.23,0.00019053,2]
[367528071,1750845048947,-647.14,0.00019054,2]
[367528072,1750845048956,-349.08809935,0.0001906,2]
[367528073,1750845048966,-1041.97429518,0.00019099,2]
[367528074,1750845048976,-151.0,0.000191,2]
[367528075,1750845048985,-151.0,0.000191,2]
[367528076,1750845048995,-151.0,0.000191,2]
[367528077,1750845049005,-1949.51835943,0.00019107,2]
[367528078,1750845049017,-5000.0,0.00019107,2]
[367528079,1750845130486,-5000.0,0.00016693,2]
[367528080,1750845130507,-926.40160843,0.00016759,2]
[367528081,1750845130529,-300.0,0.00016858,2]
[367528082,1750845130551,-500.0,0.00016859,2]
[367528083,1750845130571,-500.0,0.00016859,2]
[367528084,1750845130592,-500.0,0.00016859,2]
[367528085,1750845130613,-582.99441932,0.00016859,2]
[367528086,1750845130635,-500.0,0.00016859,2]
[367528087,1750845130655,-500.0,0.00016859,2]
[367528088,1750845130675,-500.0,0.00016859,2]
[367528089,1750845130698,-500.0,0.00016859,2]
[367528090,1750845130720,-500.0,0.00016859,2]
[367528091,1750845130740,-500.0,0.00016859,2]
[367528092,1750845130762,-500.0,0.00016859,2]
[367528093,1750845130782,-500.0,0.00016859,2]
[367528094,1750845130805,-500.0,0.00016859,2]
[367528095,1750845130825,-500.0,0.00016859,2]
[367528096,1750845130846,-200.0,0.00016859,2]
[367528097,1750845130869,-500.0,0.00016859,2]
[367528098,1750845130889,-500.0,0.00016859,2]
[367528099,1750845130911,-500.0,0.00016859,2]
[367528100,1750845130934,-500.0,0.00016859,2]
[367528101,1750845130956,-500.0,0.00016859,2]
[367528102,1750845130977,-500.0,0.00016859,2]
[367528103,1750845130997,-500.0,0.00016859,2]
[367528104,1750845131019,-500.0,0.00016859,2]
[367528105,1750845131041,-500.0,0.00016859,2]
[367528106,1750845131061,-500.0,0.00016859,2]
[367528107,1750845131085,-500.0,0.00016859,2]
[367528108,1750845131105,-500.0,0.00016859,2]
[367528109,1750845131127,-550.0,0.00016859,2]
[367528110,1750845131148,-1159.56,0.00016859,2]
[367528111,1750845131172,-460.0,0.00016859,2]
[367528112,1750845131194,-500.0,0.00016859,2]
[367528113,1750845131214,-500.0,0.00016859,2]
[367528114,1750845131236,-222.26286122,0.00016859,2]
[367528115,1750845131255,-500.0,0.00016859,2]
[367528116,1750845131275,-417.05191406,0.00016859,2]
[367528117,1750845131296,-500.0,0.00016859,2]
[367528118,1750845131318,-355.72919697,0.00016859,2]
[367528119,1750845194556,3000.0,0.00023,30]
[367528122,1750845520705,-4981.0,0.00016358,2]
[367528124,1750845589950,159.806349,0.00013699,2]
[367528132,1750846111109,-4968.0,0.00016259,2]
[367528187,1750846232011,-32.0,0.00016259,2]
[367528189,1750846232020,-1336.21766965,0.00016759,2]
[367528191,1750846232029,-1200.0,0.00016796,2]
[367528193,1750846232039,-300.0,0.00016796,2]
[367528214,1750846232258,-300.0,0.00016796,2]
[367528215,1750846232277,-747.0,0.00016796,2]
[367528216,1750846232286,-5858.06939533,0.00016797,2]
[367528217,1750846232298,-287.51410255,0.00016797,2]
[367528218,1750846232315,-8775.35357678,0.00016797,2]
[367528219,1750846232328,-4398.82149547,0.00016797,2]
[367528220,1750846232337,-162.0272202,0.00016797,2]
[367528221,1750846232347,-298.80412484,0.00016797,2]
[367528222,1750846232356,-415.0,0.00016797,2]
[367528223,1750846232366,-369.37806096,0.00016797,2]
[367528224,1750846232375,-460.0,0.00016798,2]
[367528226,1750846232384,-404.51678581,0.00016798,2]
[367528228,1750846232393,-460.0,0.00016798,2]
[367528230,1750846232403,-460.0,0.00016798,2]
[367528232,1750846232411,-460.0,0.00016798,2]
[367528233,1750846232421,-533.18,0.00016798,2]
[367528235,1750846232430,-460.0,0.00016798,2]
[367528237,1750846232439,-460.0,0.00016798,2]
[367528239,1750846232448,-484.1,0.00016798,2]
[367528241,1750846232457,-969.55,0.00016798,2]
[367528243,1750846232466,-460.0,0.00016798,2]
[367528245,1750846232476,-460.0,0.00016798,2]
[367528247,1750846232484,-460.0,0.00016798,2]
[367528249,1750846232493,-460.0,0.00016799,2]
[367528251,1750846232502,-500.0,0.00016799,2]
[367528253,1750846232511,-500.0,0.00016799,2]
[367528255,1750846232522,-500.0,0.00016799,2]
[367528257,1750846232535,-500.0,0.00016799,2]
[367528259,1750846232544,-500.0,0.00016799,2]
[367528261,1750846232554,-500.0,0.00016799,2]
[367528263,1750846232563,-500.0,0.00016799,2]
[367528266,1750846232574,-258.09609352,0.00016799,2]
[367528268,1750846232585,-500.0,0.00016799,2]
[367528270,1750846232595,-500.0,0.00016799,2]
[367528272,1750846232606,-533.86524377,0.00016799,2]
[367528273,1750846232618,-500.0,0.00016799,2]
[367528275,1750846232628,-500.0,0.00016799,2]
[367528277,1750846232637,-481.93633984,0.00016799,2]
[367528279,1750846232646,-500.0,0.00016799,2]
[367528281,1750846232655,-500.0,0.00016799,2]
[367528283,1750846232665,-500.0,0.00016799,2]
[367528286,1750846232674,-500.0,0.00016799,2]
[367528288,1750846232683,-500.0,0.00016799,2]
[367528290,1750846232693,-500.0,0.00016799,2]
[367528292,1750846232703,-500.0,0.00016799,2]
[367528294,1750846232712,-500.0,0.00016799,2]
[367528295,1750846232722,-500.0,0.00016799,2]
[367528297,1750846232731,-460.0,0.00016799,2]
[367528299,1750846232740,-514.87927659,0.00016799,2]
[367528300,1750846232750,-460.0,0.00016799,2]
[367528302,1750846232759,-500.0,0.00016799,2]
[367528304,1750846232770,-420.73,0.00016799,2]
[367528306,1750846232779,-460.0,0.00016799,2]
[367528307,1750846232788,-460.0,0.00016799,2]
[367528309,1750846232797,-460.0,0.00016799,2]
[367528310,1750846232807,-199.96221133,0.00016799,2]
[367528311,1750846232816,-460.0,0.00016799,2]
[367528313,1750846232826,-473.35861997,0.00016799,2]
[367528315,1750846232835,-460.0,0.00016799,2]
[367528317,1750846232844,-1518.23,0.00016799,2]
[367528319,1750846232854,-460.0,0.00016799,2]
[367528321,1750846232863,-460.0,0.00016799,2]
[367528323,1750846232873,-460.0,0.00016799,2]
[367528325,1750846232882,-542.31,0.00016799,2]
[367528327,1750846232891,-1736.35,0.00016799,2]
[367528328,1750846232901,-460.0,0.00016799,2]
[367528330,1750846232911,-460.0,0.00016799,2]
[367528332,1750846232921,-460.0,0.00016799,2]
[367528334,1750846232930,-460.0,0.00016799,2]
[367528336,1750846232940,-460.0,0.00016799,2]
[367528338,1750846232949,-460.0,0.00016799,2]
[367528340,1750846232959,-460.0,0.00016799,2]
[367528342,1750846232968,-460.0,0.00016799,2]
[367528344,1750846232977,-1713.32,0.00016799,2]
[367528346,1750846232986,-645.32,0.00016799,2]
[367528348,1750846232996,-1431.6,0.00016799,2]
[367528350,1750846233005,-460.0,0.00016799,2]
[367528352,1750846233014,-460.0,0.00016799,2]
[367528354,1750846233023,-460.0,0.00016799,2]
[367528356,1750846233032,-460.0,0.00016799,2]
[367528358,1750846233041,-460.0,0.00016799,2]
[367528360,1750846233051,-460.0,0.00016799,2]
[367528362,1750846233060,-460.0,0.00016799,2]
[367528364,1750846233069,-460.0,0.00016799,2]
[367528366,1750846233079,-460.0,0.00016799,2]
[367528368,1750846233089,-539.8,0.00016799,2]
[367528370,1750846233098,-460.0,0.00016799,2]
[367528372,1750846233108,-460.0,0.00016799,2]
[367528374,1750846233118,-460.0,0.00016799,2]
[367528376,1750846233127,-12799.07992137,0.000168,3]
[367528412,1750846237921,-460.0,0.00016798,2]
[367528414,1750846237931,-460.0,0.00016799,2]
[367528415,1750846237941,-42189.69581503,0.000168,3]
[367528417,1750846237950,-213.69531788,0.000168,3]
[367528419,1750846237959,-846.80634355,0.000168,3]
[367528421,1750846237968,-12558.06783089,0.000168,3]
[367528423,1750846237978,-524.21181985,0.000168,3]
[367528425,1750846237987,-151.0,0.000168,3]
[367528427,1750846237997,-198.0,0.00016827,3]
[367528429,1750846238006,-217.35323454,0.00016858,12]
[367528430,1750846238015,-479.6792972,0.00016858,2]
[367528431,1750846238025,-460.0,0.00016858,2]
[367528432,1750846238034,-460.0,0.00016858,2]
[367528433,1750846238044,-460.0,0.00016858,2]
[367528434,1750846238053,-460.0,0.00016858,2]
[367528436,1750846238064,-460.0,0.00016858,2]
[367528438,1750846238074,-460.0,0.00016858,2]
[367528439,1750846238084,-460.0,0.00016858,2]
[367528441,1750846238093,-460.0,0.00016858,2]
[367528442,1750846238102,-548.06737321,0.00016858,2]
[367528444,1750846238111,-460.0,0.00016858,2]
[367528446,1750846238121,-460.0,0.00016858,2]
[367528448,1750846238130,-460.0,0.00016858,2]
[367528450,1750846238139,-333.85076142,0.00016858,2]
[367528451,1750846238148,-274.42037394,0.00016858,2]
[367528453,1750846238158,-434.94162438,0.00016858,2]
[367528454,1750846238167,-460.0,0.00016858,2]
[367528455,1750846238176,-460.0,0.00016858,2]
[367528456,1750846238187,-460.0,0.00016858,2]
[367528457,1750846238196,-437.00680497,0.00016858,2]
[367528458,1750846238206,-460.0,0.00016858,2]
[367528460,1750846238215,-460.0,0.00016858,2]
[367528461,1750846238224,-460.0,0.00016858,2]
[367528463,1750846238233,-460.0,0.00016858,2]
[367528465,1750846238243,-460.0,0.00016858,2]
[367528466,1750846238254,-460.0,0.00016858,2]
[367528468,1750846238263,-460.0,0.00016858,2]
[367528470,1750846238272,-460.0,0.00016858,2]
[367528472,1750846238281,-460.0,0.00016858,2]
[367528474,1750846238291,-460.0,0.00016858,2]
[367528476,1750846238300,-404.85562647,0.00016858,2]
[367528478,1750846238309,-460.0,0.00016858,2]
[367528480,1750846238319,-548.44906597,0.00016858,2]
[367528482,1750846238327,-460.0,0.00016858,2]
[367528484,1750846238337,-460.0,0.00016858,2]
[367528486,1750846238346,-518.66,0.00016858,2]
[367528488,1750846238355,-460.0,0.00016858,2]
[367528490,1750846238364,-460.0,0.00016858,2]
[367528492,1750846238373,-460.0,0.00016858,2]
[367528494,1750846238382,-460.0,0.00016858,2]
[367528496,1750846238391,-460.0,0.00016858,2]
[367528498,1750846238401,-460.0,0.00016858,2]
[367528500,1750846238410,-460.0,0.00016858,2]
[367528502,1750846238420,-448.29592737,0.00016858,2]
[367528504,1750846238430,-460.0,0.00016858,2]
[367528506,1750846238439,-460.0,0.00016858,2]
[367528508,1750846238449,-460.0,0.00016858,2]
[367528510,1750846238458,-460.0,0.00016858,2]
[367528512,1750846238467,-420.0,0.00016858,2]
[367528514,1750846238477,-460.0,0.00016858,2]
[367528516,1750846238486,-460.0,0.00016858,2]
[367528518,1750846238495,-367.22789448,0.00016858,2]
[367528520,1750846238504,-460.0,0.00016858,2]
[367528522,1750846238514,-432.35760852,0.00016858,2]
[367528524,1750846238526,-460.0,0.00016858,2]
[367528526,1750846238540,-460.0,0.00016858,2]
[367528528,1750846238549,-591.59,0.00016858,2]
[367528530,1750846238559,-460.0,0.00016858,2]
[367528532,1750846238569,-571.59,0.00016858,2]
[367528535,1750846238578,-460.0,0.00016858,2]
[367528538,1750846238588,-250.55274003,0.00016858,2]
[367528540,1750846238597,-460.0,0.00016858,2]
[367528542,1750846238606,-460.0,0.00016858,2]
[367528544,1750846238615,-460.0,0.00016858,2]
[367528546,1750846238624,-460.0,0.00016858,2]
[367528548,1750846238633,-460.0,0.00016858,2]
[367528550,1750846238642,-460.0,0.00016858,2]
[367528552,1750846238652,-460.0,0.00016858,2]
[367528554,1750846238661,-460.0,0.00016858,2]
[367528556,1750846238670,-460.0,0.00016858,2]
[367528558,1750846238679,-460.0,0.00016858,2]
[367528560,1750846238690,-248.69223651,0.00016858,2]
[367528562,1750846238698,-460.0,0.00016858,2]
[367528564,1750846238708,-235.60988074,0.00016858,2]
[367528566,1750846238717,-460.0,0.00016858,2]
[367528568,1750846238727,-460.0,0.00016858,2]
[367528570,1750846238735,-460.0,0.00016858,2]
[367528572,1750846238744,-208.7739947,0.00016858,2]
[367528574,1750846238754,-460.0,0.00016858,2]
[367528576,1750846238763,-514.5158034,0.00016858,2]
[367528578,1750846238772,-460.0,0.00016858,2]
[367528580,1750846238781,-463.45151822,0.00016858,2]
[367528582,1750846238791,-460.0,0.00016858,2]
[367528584,1750846238801,-461.30600845,0.00016858,2]
[367528585,1750846238810,-460.0,0.00016858,2]
[367528587,1750846238819,-460.0,0.00016858,2]
[367528589,1750846238828,-460.0,0.00016858,2]
[367528591,1750846238838,-460.0,0.00016858,2]
[367528593,1750846238847,-460.0,0.00016858,2]
[367528595,1750846238856,-460.0,0.00016858,2]
[367528597,1750846238866,-444.66,0.00016858,2]
[367528600,1750846238876,-435.3732397,0.00016858,2]
[367528602,1750846238886,-460.0,0.00016858,2]
[367528604,1750846238895,-460.0,0.00016858,2]
[367528605,1750846238903,-460.0,0.00016858,2]
[367528607,1750846238913,-3532.78,0.00016858,2]
[367528609,1750846238922,-460.0,0.00016858,2]
[367528612,1750846238933,-460.0,0.00016858,2]
[367528613,1750846238943,-460.0,0.00016858,2]
[367528615,1750846238951,-460.0,0.00016858,2]
[367528617,1750846238961,-176.8724996,0.00016858,2]
[367528619,1750846238970,-460.0,0.00016858,2]
[367528621,1750846238979,-460.0,0.00016858,2]
[367528623,1750846238988,-460.0,0.00016858,2]
[367528625,1750846238998,-460.0,0.00016858,2]
[367528627,1750846239007,-460.0,0.00016858,2]
[367528630,1750846239018,-460.0,0.00016858,2]
[367528631,1750846239028,-460.0,0.00016858,2]
[367528633,1750846239037,-460.0,0.00016858,2]
[367528635,1750846239046,-460.0,0.00016858,2]
[367528637,1750846239056,-460.0,0.00016858,2]
[367528640,1750846239065,-460.0,0.00016858,2]
[367528642,1750846239075,-460.0,0.00016858,2]
[367528644,1750846239085,-460.0,0.00016858,2]
[367528646,1750846239094,-460.0,0.00016858,2]
[367528648,1750846239103,-460.0,0.00016858,2]
[367528649,1750846239112,-460.0,0.00016858,2]
[367528652,1750846239122,-460.0,0.00016858,2]
[367528654,1750846239133,-460.0,0.00016858,2]
[367528655,1750846239143,-241.38102987,0.00016858,2]
[367528658,1750846239152,-460.0,0.00016858,2]
[367528659,1750846239163,-460.0,0.00016858,2]
[367528661,1750846239173,-460.0,0.00016858,2]
[367528663,1750846239182,-460.0,0.00016858,2]
[367528665,1750846239191,-460.0,0.00016858,2]
[367528667,1750846239200,-460.0,0.00016858,2]
[367528669,1750846239209,-460.0,0.00016858,2]
[367528671,1750846239218,-460.0,0.00016858,2]
[367528673,1750846239227,-460.0,0.00016858,2]
[367528675,1750846239238,-460.0,0.00016858,2]
[367528677,1750846239248,-460.0,0.00016858,2]
[367528679,1750846239257,-460.0,0.00016858,2]
[367528681,1750846239267,-460.0,0.00016858,2]
[367528683,1750846239277,-645.59,0.00016858,2]
[367528685,1750846239287,-460.0,0.00016858,2]
[367528687,1750846239296,-460.0,0.00016858,2]
[367528689,1750846239305,-460.0,0.00016858,2]
[367528691,1750846239316,-460.0,0.00016858,2]
[367528693,1750846239325,-460.0,0.00016858,2]
[367528695,1750846239335,-460.0,0.00016858,2]
[367528697,1750846239345,-460.0,0.00016858,2]
[367528699,1750846239354,-293.63421466,0.00016858,2]
[367528701,1750846239363,-460.0,0.00016858,2]
[367528703,1750846239372,-460.0,0.00016858,2]
[367528705,1750846239381,-301.52955287,0.00016858,2]
[367528707,1750846239391,-460.0,0.00016858,2]
[367528709,1750846239400,-460.0,0.00016858,2]
[367528711,1750846239414,-460.0,0.00016858,2]
[367528713,1750846239423,-460.0,0.00016858,2]
[367528715,1750846239433,-460.0,0.00016858,2]
[367528717,1750846239442,-460.0,0.00016858,2]
[367528719,1750846239451,-350.17417837,0.00016859,2]
[367528721,1750846239460,-460.0,0.00016859,2]
[367528723,1750846239469,-395.60477184,0.00016859,5]
[367528725,1750846239478,-460.0,0.00016859,2]
[367528727,1750846239487,-507.44252218,0.00016859,2]
[367528729,1750846239496,-573.02859618,0.00016859,2]
[367528731,1750846239505,-460.0,0.00016859,2]
[367528733,1750846239514,-166.34713369,0.00016859,2]